fUST/lending_fUST_20250609
["ID","MTS","AMOUNT","RATE_DAILY","PERIOD"]
[365061664,1749435045718,-604.59,0.00023287,4]
[365061665,1749435045727,-590.33,0.00023287,4]
[365061666,1749435045737,-617.89,0.00023287,4]
[365061667,1749435045747,-151.0,0.00023287,7]
[365061668,1749435045756,-523.66,0.00023287,4]
[365061669,1749435045766,-151.0,0.00023287,7]
[365061670,1749435045775,-561.11,0.00023287,4]
[365061671,1749435045785,-151.0,0.00023287,7]
[365061672,1749435045795,-603.18,0.00023287,4]
[365061673,1749435045804,-151.0,0.00023287,7]
[365061674,1749435045813,-151.0,0.00023287,7]
[365061675,1749435045823,-151.0,0.00023287,7]
[365061676,1749435045833,-908.12,0.00023287,4]
[365061677,1749435045842,-151.0,0.00023287,7]
[365061678,1749435045852,-1705.51,0.00023287,4]
[365061679,1749435045862,-515.09,0.00023287,4]
[365061680,1749435045876,-153.649163,0.00023287,7]
[365061681,1749435045886,-151.0,0.00023287,7]
[365061682,1749435045896,-987.73,0.00023287,4]
[365061683,1749435045906,-151.0,0.00023287,7]
[365061684,1749435045916,-904.53,0.00023287,4]
[365061685,1749435045927,-153.908546,0.00023287,7]
[365061686,1749435045937,-775.2,0.00023287,4]
[365061687,1749435045951,-887.719557,0.00023287,2]
[365061688,1749435045960,-1123.35,0.00023287,4]
[365061690,1749435045970,-887.719557,0.00023287,2]
[365061693,1749435045980,-1244.85,0.00023287,4]
[365061694,1749435045990,-151.0,0.000233,7]
[365061697,1749435046000,-214.154465,0.000233,7]
[365061698,1749435046009,-214.154465,0.000233,7]
[365061700,1749435046022,-166.190911,0.000233,7]
[365061702,1749435046032,-166.190911,0.000233,7]
[365061704,1749435046042,-1000.0,0.000233,2]
[365061707,1749435046052,-151.0,0.000233,7]
[365061709,1749435046062,-152.496058,0.000233,7]
[365061711,1749435046071,-151.0,0.000233,7]
[365061713,1749435046080,-177.713071,0.000233,7]
[365061715,1749435046090,-151.0,0.000233,7]
[365061717,1749435046100,-151.0,0.000233,7]
[365061719,1749435046110,-151.503279,0.00023313,7]
[365061721,1749435046120,-224.208075,0.00023313,7]
[365061723,1749435046129,-152.17083,0.00023313,7]
[365061725,1749435046139,-151.0,0.00023313,7]
[365061727,1749435046148,-157.622914,0.00023313,7]
[365061728,1749435046158,-170.389785,0.00023313,7]
[365061729,1749435046168,-151.0,0.00023313,7]
[365061730,1749435046177,-151.0,0.00023313,7]
[365061732,1749435046187,-515.99395455,0.00023329,5]
[365061734,1749435046196,-1002.01390923,0.00023335,2]
[365061736,1749435046206,-1009.49702705,0.00023343,2]
[365061738,1749435046216,-792.5724144,0.00023348,9]
[365061740,1749435046225,-405.0,0.00023367,2]
[365061741,1749435046235,-162.21587453,0.00023397,2]
[365061742,1749435046244,-162.98198565,0.00023397,2]
[365061743,1749435046254,-392.95,0.000234,7]
[365061744,1749435046264,-277.4745419,0.00023452,2]
[365061745,1749435046274,-823.0,0.00023503,2]
[365061746,1749435046283,-792.5724144,0.00023521,9]
[365061747,1749435046293,-828.25453,0.0002356,2]
[365061748,1749435046302,-200.0,0.00023561,2]
[365061749,1749435046312,-200.0,0.00023561,2]
[365061750,1749435046322,-200.0,0.00023561,2]
[365061751,1749435046331,-200.0,0.00023561,2]
[365061752,1749435046340,-200.0,0.00023561,2]
[365061753,1749435046350,-200.0,0.00023561,2]
[365061754,1749435046360,-200.0,0.00023561,2]
[365061755,1749435046370,-200.0,0.00023561,2]
[365061756,1749435046380,-200.0,0.00023561,2]
[365061757,1749435046390,-200.0,0.00023561,2]
[365061758,1749435046399,-200.0,0.00023561,2]
[365061759,1749435046409,-203.34988761,0.00023561,4]
[365061760,1749435046419,-505.45523362,0.00023561,2]
[365061761,1749435046430,-440.0,0.00023561,4]
[365061762,1749435046439,-1387.06,0.00023561,4]
[365061763,1749435046450,-440.0,0.00023561,4]
[365061764,1749435046459,-604.59,0.00023561,4]
[365061765,1749435046469,-590.33,0.00023561,4]
[365061766,1749435046479,-617.89,0.00023561,4]
[365061767,1749435046489,-523.66,0.00023561,4]
[365061768,1749435046499,-561.11,0.00023561,4]
[365061769,1749435046508,-603.18,0.00023561,4]
[365061770,1749435046518,-908.12,0.00023561,4]
[365061771,1749435046529,-1705.51,0.00023561,4]
[365061772,1749435046539,-515.09,0.00023561,4]
[365061773,1749435046549,-987.73,0.00023561,4]
[365061774,1749435046560,-904.53,0.00023561,4]
[365061775,1749435046570,-775.2,0.00023561,4]
[365061776,1749435046580,-1123.35,0.00023561,4]
[365061777,1749435046590,-1244.85,0.00023561,4]
[365061778,1749435046600,-5000.0,0.00023575,2]
[365061779,1749435046610,-600.0,0.00023579,2]
[365061780,1749435046620,-364.9269501,0.00023589,2]
[365061782,1749435046630,-1104.54,0.000236,7]
[365061784,1749435046640,-2000.0,0.0002368,2]
[365061786,1749435046650,-792.5724144,0.00023693,9]
[365061788,1749435046659,-800.0,0.00023696,2]
[365061790,1749435046669,-2000.0,0.00023698,7]
[365061791,1749435046678,-2000.0,0.00023698,7]
[365061792,1749435046688,-1014.58021333,0.00023698,7]
[365061793,1749435046698,-226.68507,0.00023698,7]
[365061794,1749435046707,-152.874631,0.00023698,7]
[365061795,1749435046717,-151.987102,0.00023698,7]
[365061796,1749435046727,-151.0,0.00023698,7]
[365061797,1749435046736,-415.726429,0.00023698,7]
[365061798,1749435046746,-415.726429,0.00023698,7]
[365061799,1749435046755,-151.057529,0.00023698,7]
[365061800,1749435046764,-151.057529,0.00023698,7]
[365061801,1749435046774,-162.21587453,0.00023699,2]
[365061802,1749435046784,-162.21587453,0.00023699,2]
[365061803,1749435046794,-162.98198565,0.00023699,2]
[365061804,1749435046803,-153.0,0.00023726,2]
[365061805,1749435046813,-153.0,0.00023726,2]
[365061807,1749435046822,-153.0,0.00023726,2]
[365061809,1749435046832,-259.8782008,0.00023726,2]
[365061811,1749435046841,-153.0,0.00023726,2]
[365061813,1749435046850,-153.0,0.00023726,2]
[365061815,1749435046860,-153.0,0.00023726,2]
[365061817,1749435046870,-153.0,0.00023726,2]
[365061819,1749435046879,-153.0,0.00023726,2]
[365061821,1749435046889,-153.0,0.00023726,2]
[365061823,1749435046898,-153.0,0.00023726,2]
[365061825,1749435046908,-153.0,0.00023726,2]
[365061827,1749435046918,-153.0,0.00023726,2]
[365061829,1749435046927,-153.0,0.00023726,2]
[365061831,1749435046937,-153.0,0.00023726,2]
[365061833,1749435046950,-153.0,0.00023726,2]
[365061835,1749435046959,-153.0,0.00023726,2]
[365061837,1749435046969,-153.0,0.00023726,2]
[365061839,1749435046979,-153.0,0.00023726,2]
[365061850,1749435047032,-153.0,0.00023726,2]
[365061852,1749435047092,-153.0,0.00023726,2]
[365061854,1749435047102,-153.0,0.00023726,2]
[365061856,1749435047112,-153.0,0.00023726,2]
[365061858,1749435047121,-153.0,0.00023726,2]
[365061860,1749435047131,-158.7201836,0.00023753,2]
[365061861,1749435047141,-176.7945791,0.00023753,2]
[365061863,1749435047151,-573.244939,0.00023753,2]
[365061865,1749435047160,-237.7810971,0.00023753,2]
[365061867,1749435047170,-158.7201836,0.00023753,2]
[365061870,1749435047180,-573.244939,0.00023753,2]
[365061872,1749435047189,-176.7945793,0.00023753,2]
[365061874,1749435047198,-176.7945791,0.00023753,2]
[365061876,1749435047208,-153.0,0.00023753,2]
[365061878,1749435047217,-573.244939,0.00023753,2]
[365061880,1749435047227,-158.7201836,0.00023753,2]
[365061882,1749435047236,-153.0,0.00023753,2]
[365061884,1749435047245,-158.7201836,0.00023753,2]
[365061886,1749435047254,-176.7945793,0.00023753,2]
[365061888,1749435047264,-573.244939,0.00023753,2]
[365061890,1749435047273,-176.7945791,0.00023753,2]
[365061892,1749435047282,-153.0,0.00023753,2]
[365061894,1749435047291,-158.7201836,0.00023753,2]
[365061896,1749435047302,-153.0,0.00023753,2]
[365061898,1749435047311,-573.244939,0.00023753,2]
[365061900,1749435047321,-1000.0,0.000238,2]
[365061902,1749435047330,-151.0,0.00023806,7]
[365061904,1749435047340,-151.0,0.00023806,7]
[365061906,1749435047350,-5000.0,0.00023806,2]
[365061908,1749435047359,-580.50926285,0.00023812,2]
[365061910,1749435047369,-963.0,0.00023817,2]
[365061912,1749435047378,-2160.0,0.00023817,2]
[365061914,1749435047388,-653.0,0.00023817,2]
[365061916,1749435047398,-2400.0,0.0002382,2]
[365061918,1749435047408,-600.0,0.00023824,2]
[365061920,1749435047417,-440.0,0.00023835,4]
[365061922,1749435047427,-1387.06,0.00023835,4]
[365061925,1749435047440,-440.0,0.00023835,4]
[365061927,1749435047449,-604.59,0.00023835,4]
[365061929,1749435047459,-590.33,0.00023835,4]
[365061931,1749435047469,-617.89,0.00023835,4]
[365061933,1749435047479,-523.66,0.00023835,4]
[365061935,1749435047489,-561.11,0.00023835,4]
[365061937,1749435047499,-603.18,0.00023835,4]
[365061939,1749435047510,-908.12,0.00023835,4]
[365061941,1749435047520,-1705.51,0.00023835,4]
[365061943,1749435047530,-515.09,0.00023835,4]
[365061945,1749435047540,-987.73,0.00023835,4]
[365061947,1749435047550,-904.53,0.00023835,4]
[365061949,1749435047561,-775.2,0.00023835,4]
[365061951,1749435047571,-1123.35,0.00023835,4]
[365061953,1749435047581,-1244.85,0.00023835,4]
[365061955,1749435047590,-792.5724144,0.00023866,10]
[365061957,1749435047600,-191.26163588,0.0002388,2]
[365061959,1749435047610,-250.0,0.00023904,2]
[365061961,1749435047620,-26958.68256198,0.00023912,2]
[365061963,1749435047629,-800.0,0.00023953,2]
[365061965,1749435047639,-1753.125751,0.00023967,3]
[365061967,1749435047648,-800.0,0.00023971,2]
[365061970,1749435047659,-1314.4,0.00023976,2]
[365061972,1749435047669,-194.18780731,0.00023979,2]
[365061974,1749435047678,-162.21587453,0.00024,2]
[365061976,1749435047688,-153.0,0.00024,2]
[365061978,1749435047697,-162.98198565,0.00024,2]
[365061980,1749435047706,-153.0,0.00024,2]
[365061982,1749435047716,-153.0,0.00024,2]
[365061984,1749435047725,-153.0,0.00024,2]
[365061986,1749435047734,-153.0,0.00024,2]
[365061988,1749435047743,-153.0,0.00024,2]
[365061989,1749435047753,-153.0,0.00024,2]
[365061991,1749435047763,-153.0,0.00024,2]
[365061994,1749435047773,-6778.87608756,0.00024,3]
[365061995,1749435047783,-792.5724144,0.00024038,10]
[365061997,1749435047792,-12916.1454818,0.00024051,2]
[365062000,1749435047802,-1100.0,0.00024053,2]
[365062002,1749435047812,-600.0,0.0002407,2]
[365062004,1749435047821,-151.0,0.0002407,7]
[365062006,1749435047831,-151.477616,0.0002407,7]
[365062008,1749435047840,-151.0,0.0002407,7]
[365062010,1749435047850,-158.578189,0.0002407,7]
[365062012,1749435047860,-153.124329,0.0002407,7]
[365062014,1749435047870,-151.0,0.00024076,7]
[365062016,1749435047879,-151.0,0.00024076,7]
[365062018,1749435047889,-214.154465,0.00024076,7]
[365062020,1749435047898,-214.154465,0.00024076,7]
[365062022,1749435047908,-166.190911,0.00024076,7]
[365062024,1749435047917,-166.190911,0.00024076,7]
[365062026,1749435047927,-151.0,0.00024076,7]
[365062028,1749435047936,-151.0,0.00024076,7]
[365062030,1749435047949,-153.503399,0.00024076,7]
[365062032,1749435047959,-222.237001,0.00024076,7]
[365062034,1749435047968,-151.0,0.00024076,7]
[365062036,1749435047977,-151.0,0.00024076,7]
[365062038,1749435047987,-152.896592,0.00024076,7]
[365062040,1749435047996,-154.754473,0.00024076,7]
[365062042,1749435048006,-216.683328,0.00024076,7]
[365062044,1749435048018,-151.0,0.00024076,7]
[365062046,1749435048027,-151.0,0.00024076,7]
[365062048,1749435048037,-151.0,0.00024076,7]
[365062050,1749435048046,-151.0,0.00024076,7]
[365062052,1749435048055,-163.851071,0.00024076,7]
[365062054,1749435048065,-182.152002,0.00024076,7]
[365062056,1749435048074,-151.0,0.00024076,7]
[365062058,1749435048084,-151.0,0.00024076,7]
[365062060,1749435048094,-151.0,0.00024076,7]
[365062062,1749435048103,-151.0,0.00024076,7]
[365062064,1749435048113,-151.0,0.00024076,7]
[365062066,1749435048122,-151.0,0.00024076,7]
[365062068,1749435048132,-151.0,0.00024076,7]
[365062070,1749435048142,-151.756873,0.00024076,7]
[365062072,1749435048153,-151.0,0.00024076,7]
[365062074,1749435048163,-151.0,0.00024076,7]
[365062076,1749435048173,-887.719557,0.00024076,2]
[365062078,1749435048183,-887.719557,0.00024076,2]
[365062080,1749435048193,-151.0,0.00024076,7]
[365062082,1749435048203,-151.0,0.00024076,7]
[365062084,1749435048212,-293.32388536,0.00024076,7]
[365062086,1749435048222,-133325.44129973,0.00024076,7]
[365062088,1749435048232,-215.0738,0.00024079,2]
[365062090,1749435048242,-530.58,0.000241,10]
[365062092,1749435048251,-151.0,0.00024109,7]
[365062094,1749435048261,-330.45225274,0.00024109,4]
[365062096,1749435048270,-1387.06,0.00024109,4]
[365062098,1749435048279,-415.726429,0.00024109,7]
[365062100,1749435048289,-440.0,0.00024109,4]
[365062102,1749435048298,-415.726429,0.00024109,7]
[365062104,1749435048307,-151.057529,0.00024109,7]
[365062106,1749435048317,-151.057529,0.00024109,7]
[365062108,1749435048326,-604.59,0.00024109,4]
[365062110,1749435048335,-590.33,0.00024109,4]
[365062112,1749435048344,-617.89,0.00024109,4]
[365062114,1749435048354,-523.66,0.00024109,4]
[365062117,1749435048365,-561.11,0.00024109,4]
[365062119,1749435048375,-603.18,0.00024109,4]
[365062121,1749435048384,-908.12,0.00024109,4]
[365062123,1749435048394,-1705.51,0.00024109,4]
[365062125,1749435048404,-515.09,0.00024109,4]
[365062127,1749435048414,-987.73,0.00024109,4]
[365062129,1749435048424,-904.53,0.00024109,4]
[365062131,1749435048433,-775.2,0.00024109,4]
[365062133,1749435048443,-1123.35,0.00024109,4]
[365062135,1749435048452,-1244.85,0.00024109,4]
[365062137,1749435048461,-3916.02,0.0002411,10]
[365062139,1749435048471,-800.0,0.00024153,2]
[365062141,1749435048480,-212.0,0.0002417,10]
[365062143,1749435048490,-800.0,0.00024179,2]
[365062145,1749435048499,-200.0,0.00024199,2]
[365062147,1749435048509,-792.5724144,0.0002421,10]
[365062149,1749435048519,-1980.0,0.00024213,2]
[365062151,1749435048529,-2509.39658206,0.00024227,2]
[365062153,1749435048539,-1980.0,0.00024253,2]
[365062155,1749435048549,-200.50968493,0.00024267,2]
[365062157,1749435048559,-2200.0,0.00024298,2]
[365062160,1749435048570,-46809.65,0.000243,7]
[365062162,1749435048580,-151.0,0.000243,7]
[365062164,1749435048589,-151.67615,0.000243,7]
[365062166,1749435048599,-153.951778,0.000243,7]
[365062168,1749435048609,-151.0,0.000243,7]
[365062170,1749435048618,-151.0,0.000243,7]
[365062172,1749435048628,-151.0,0.000243,7]
[365062174,1749435048638,-1000.0,0.000243,2]
[365062176,1749435048649,-600.0,0.00024315,2]
[365062178,1749435048659,-134669.98201738,0.00024321,3]
[365062180,1749435048669,-151.0,0.00024321,7]
[365062182,1749435048679,-151.0,0.00024321,7]
[365062184,1749435048688,-214.154465,0.00024321,7]
[365062186,1749435048698,-214.154465,0.00024321,7]
[365062197,1749435048708,-151.0,0.00024321,7]
[365062199,1749435048809,-151.0,0.00024321,7]
[365062201,1749435048819,-288.756291,0.00024321,7]
[365062203,1749435048829,-151.0,0.00024321,7]
[365062205,1749435048839,-151.0,0.00024321,7]
[365062208,1749435048849,-415.726429,0.00024321,7]
[365062210,1749435048859,-415.726429,0.00024321,7]
[365062212,1749435048870,-151.057529,0.00024321,7]
[365062214,1749435048880,-151.057529,0.00024321,7]
[365062216,1749435048889,-151.0,0.00024321,7]
[365062218,1749435048899,-151.0,0.00024321,7]
[365062220,1749435048909,-151.0,0.00024321,7]
[365062222,1749435048919,-151.0,0.00024321,7]
[365062224,1749435048929,-151.0,0.00024321,7]
[365062226,1749435048940,-151.0,0.00024321,7]
[365062228,1749435048953,-295.061472,0.00024321,7]
[365062230,1749435048964,-151.0,0.00024321,7]
[365062233,1749435048974,-153.090129,0.00024321,7]
[365062235,1749435048984,-151.0,0.00024321,7]
[365062237,1749435048994,-172.571866,0.00024321,7]
[365062239,1749435049004,-152.096639,0.00024321,7]
[365062241,1749435049014,-887.719557,0.00024321,2]
[365062243,1749435049025,-887.719557,0.00024321,2]
[365062245,1749435049034,-151.0,0.00024321,7]
[365062247,1749435049044,-151.0,0.00024321,7]
[365062249,1749435049054,-800.0,0.00024348,2]
[365062251,1749435049065,-5000.0,0.00024354,2]
[365062253,1749435049075,-745.23352601,0.00024368,2]
[365062255,1749435049085,-792.5724144,0.00024383,11]
[365062257,1749435049094,-151.0,0.00024383,7]
[365062260,1749435049104,-151.0,0.00024383,7]
[365062262,1749435049114,-1387.06,0.00024383,4]
[365062264,1749435049124,-229.16378048,0.00024383,4]
[365062266,1749435049133,-604.59,0.00024383,4]
[365062268,1749435049143,-590.33,0.00024383,4]
[365062270,1749435049152,-617.89,0.00024383,4]
[365062272,1749435049162,-523.66,0.00024383,4]
[365062274,1749435049172,-561.11,0.00024383,4]
[365062276,1749435049182,-603.18,0.00024383,4]
[365062278,1749435049192,-908.12,0.00024383,4]
[365062280,1749435049202,-1705.51,0.00024383,4]
[365062282,1749435049212,-515.09,0.00024383,4]
[365062284,1749435049222,-987.73,0.00024383,4]
[365062286,1749435049232,-904.53,0.00024383,4]
[365062288,1749435049242,-775.2,0.00024383,4]
[365062290,1749435049251,-1123.35,0.00024383,4]
[365062292,1749435049262,-1244.85,0.00024383,4]
[365062294,1749435049273,-2564.06,0.000244,2]
[365062296,1749435049284,-55735.11,0.000244,2]
[365062298,1749435049293,-3000.0,0.000244,2]
[365062300,1749435049303,-151.0,0.000244,7]
[365062302,1749435049312,-151.0,0.000244,7]
[365062304,1749435049322,-151.0,0.000244,7]
[365062307,1749435049332,-166.190911,0.000244,7]
[365062309,1749435049342,-166.190911,0.000244,7]
[365062311,1749435049352,-152.001743,0.000244,7]
[365062313,1749435049361,-213.08899333,0.000244,3]
[365062315,1749435049370,-151.0,0.000244,7]
[365062317,1749435049380,-160.0,0.000244,3]
[365062319,1749435049390,-834.7738823,0.000244,3]
[365062321,1749435049400,-424.05420114,0.000244,3]
[365062323,1749435049410,-160.0,0.000244,3]
[365062325,1749435049420,-157.844069,0.000244,15]
[365062327,1749435049429,-3000.0,0.0002441,2]
[365062329,1749435049439,-3000.0,0.0002442,2]
[365062331,1749435049450,-3000.0,0.0002443,2]
[365062333,1749435049459,-800.0,0.00024434,2]
[365062335,1749435049470,-3000.0,0.0002444,2]
[365062337,1749435049479,-3000.0,0.0002445,2]
[365062339,1749435049490,-800.0,0.00024457,2]
[365062341,1749435049499,-268.30877505,0.00024457,2]
[365062343,1749435049509,-3000.0,0.0002446,2]
[365062345,1749435049520,-214.154465,0.00024463,7]
[365062347,1749435049530,-214.154465,0.00024463,7]
[365062350,1749435049540,-151.943082,0.00024463,7]
[365062352,1749435049551,-151.0,0.00024463,7]
[365062354,1749435049561,-151.0,0.00024463,7]
[365062356,1749435049572,-14491.4693141,0.00024467,2]
[365062359,1749435049590,-155.45774948,0.00024468,2]
[365062362,1749435049609,-3000.0,0.0002447,2]
[365062364,1749435049626,-151.0,0.0002447,7]
[365062367,1749435049643,-151.0,0.0002447,7]
[365062369,1749435049661,-500.0,0.0002447,2]
[365062370,1749435049678,-1980.0,0.00024475,2]
[365062371,1749435049694,-182.3413227,0.00024475,7]
[365062372,1749435049712,-151.0,0.00024475,7]
[365062373,1749435049728,-3000.0,0.0002448,2]
[365062374,1749435049743,-3000.0,0.0002449,2]
[365062375,1749435049757,-2000.0,0.000245,2]
[365062376,1749435049773,-1176.0,0.000245,30]
[365062377,1749435049788,-150.0,0.000245,2]
[365062378,1749435049800,-3000.0,0.000245,2]
[365062379,1749435049813,-150.0,0.000245,5]
[365062382,1749435049828,-2300.0,0.000245,120]
[365062385,1749435049843,-638.0,0.000245,2]
[365062387,1749435049860,-153.10058331,0.00024505,3]
[365062390,1749435049877,-799.86,0.00024507,3]
[365062393,1749435049895,-3000.0,0.0002451,2]
[365062396,1749435049908,-3000.0,0.0002452,2]
[365062398,1749435049920,-3000.0,0.0002453,2]
[365062401,1749435049936,-200.0,0.00024537,120]
[365062404,1749435049957,-3000.0,0.0002454,2]
[365062406,1749435049969,-364.9269501,0.00024548,2]
[365062408,1749435049983,-364.9269501,0.00024548,2]
[365062411,1749435049999,-364.9269501,0.00024548,2]
[365062414,1749435050010,-364.9269501,0.00024548,2]
[365062416,1749435050023,-364.9269501,0.00024548,2]
[365062418,1749435050037,-364.9269501,0.00024548,2]
[365062421,1749435050050,-364.9269501,0.00024548,2]
[365062423,1749435050063,-364.9269501,0.00024548,2]
[365062426,1749435050076,-364.9269501,0.00024548,2]
[365062428,1749435050089,-364.9269501,0.00024548,2]
[365062430,1749435050102,-364.9269501,0.00024548,2]
[365062433,1749435050115,-364.9269501,0.00024548,2]
[365062435,1749435050128,-364.9269501,0.00024548,2]
[365062438,1749435050142,-179.4069173,0.00024548,2]
[365062440,1749435050155,-3000.0,0.0002455,2]
[365062443,1749435050168,-151.0,0.0002455,7]
[365062445,1749435050182,-151.0,0.0002455,7]
[365062448,1749435050194,-151.0,0.0002455,7]
[365062450,1749435050207,-151.0,0.0002455,7]
[365062452,1749435050220,-166.190911,0.0002455,7]
[365062455,1749435050234,-166.190911,0.0002455,7]
[365062457,1749435050247,-11000.0,0.0002455,2]
[365062460,1749435050260,-151.0,0.00024554,7]
[365062462,1749435050273,-151.0,0.00024554,7]
[365062464,1749435050287,-151.0,0.00024554,7]
[365062467,1749435050301,-152.581885,0.00024554,7]
[365062469,1749435050315,-151.0,0.00024554,7]
[365062472,1749435050329,-152.886666,0.00024554,7]
[365062474,1749435050342,-166.998741,0.00024554,7]
[365062477,1749435050356,-151.0,0.00024554,7]
[365062479,1749435050369,-151.0,0.00024554,7]
[365062482,1749435050382,-151.0,0.00024554,7]
[365062484,1749435050395,-151.0,0.00024554,7]
[365062486,1749435050408,-152.889783,0.00024554,7]
[365062489,1749435050422,-151.0,0.00024554,7]
[365062492,1749435050436,-151.0,0.00024554,7]
[365062494,1749435050449,-153.463255,0.00024554,7]
[365062496,1749435050462,-792.5724144,0.00024555,11]
[365062499,1749435050476,-800.0,0.00024556,2]
[365062501,1749435050489,-160.0,0.00024557,3]
[365062504,1749435050501,-166.41333338,0.00024557,5]
[365062506,1749435050511,-3000.0,0.0002456,2]
[365062508,1749435050520,-503.50116418,0.00024561,9]
[365062510,1749435050530,-503.14179143,0.00024561,9]
[365062512,1749435050539,-600.0,0.00024561,2]
[365062514,1749435050548,-2461.72,0.00024563,30]
[365062516,1749435050558,-151.0,0.00024563,7]
[365062518,1749435050567,-151.0,0.00024563,7]
[365062520,1749435050577,-239.053506,0.00024563,7]
[365062522,1749435050587,-151.0,0.00024563,7]
[365062524,1749435050596,-205.979067,0.00024563,7]
[365062526,1749435050605,-151.0,0.00024563,7]
[365062549,1749435050810,-154.043439,0.00024563,7]
[365062553,1749435050831,-214.154465,0.00024563,7]
[365062555,1749435050841,-214.154465,0.00024563,7]
[365062557,1749435050851,-214.154465,0.00024563,7]
[365062559,1749435050860,-214.154465,0.00024563,7]
[365062561,1749435050870,-214.154465,0.00024563,7]
[365062563,1749435050880,-214.154465,0.00024563,7]
[365062565,1749435050889,-214.154465,0.00024563,7]
[365062567,1749435050898,-214.154465,0.00024563,7]
[365062569,1749435050908,-214.154465,0.00024563,7]
[365062571,1749435050918,-214.154465,0.00024563,7]
[365062573,1749435050928,-214.154465,0.00024563,7]
[365062575,1749435050937,-214.154472,0.00024563,7]
[365062577,1749435050950,-166.190911,0.00024563,7]
[365062579,1749435050960,-166.190911,0.00024563,7]
[365062581,1749435050969,-166.190911,0.00024563,7]
[365062583,1749435050979,-166.190911,0.00024563,7]
[365062585,1749435050989,-166.190911,0.00024563,7]
[365062587,1749435050998,-166.190911,0.00024563,7]
[365062589,1749435051008,-166.190911,0.00024563,7]
[365062591,1749435051018,-166.190911,0.00024563,7]
[365062593,1749435051028,-166.190911,0.00024563,7]
[365062595,1749435051038,-166.190911,0.00024563,7]
[365062597,1749435051048,-166.190911,0.00024563,7]
[365062599,1749435051057,-166.190913,0.00024563,7]
[365062601,1749435051066,-152.977418,0.00024563,7]
[365062604,1749435051076,-151.0,0.00024563,7]
[365062606,1749435051086,-159.909762,0.00024563,7]
[365062608,1749435051096,-415.726429,0.00024563,7]
[365062610,1749435051105,-415.726429,0.00024563,7]
[365062612,1749435051115,-151.057529,0.00024563,7]
[365062614,1749435051124,-151.057529,0.00024563,7]
[365062616,1749435051134,-151.0,0.00024563,7]
[365062618,1749435051143,-151.0,0.00024563,7]
[365062620,1749435051153,-151.0,0.00024563,7]
[365062622,1749435051162,-151.0,0.00024563,7]
[365062624,1749435051171,-151.0,0.00024563,7]
[365062626,1749435051181,-151.0,0.00024563,7]
[365062628,1749435051191,-151.0,0.00024563,7]
[365062630,1749435051200,-151.0,0.00024563,7]
[365062632,1749435051210,-887.719557,0.00024563,2]
[365062634,1749435051220,-887.719557,0.00024563,2]
[365062636,1749435051229,-151.0,0.00024563,7]
[365062638,1749435051239,-151.0,0.00024563,7]
[365062640,1749435051249,-10000.0,0.00024565,7]
[365062642,1749435051259,-10000.0,0.00024565,7]
[365062644,1749435051270,-1874.0,0.00024565,2]
[365062646,1749435051281,-151.0,0.00024567,7]
[365062648,1749435051290,-151.0,0.00024567,7]
[365062651,1749435051300,-151.0,0.00024567,7]